Cogmind - Beta 16 @@@ ROGUE MODE // 2025.11.04 @ 17:23:20 Player: opdo Result: Destroyed by AG-87853 with Assembled Focal Cannon Performance ------------- Evolutions (4) 2000 Regions Visited (9) 1800 Robots Destroyed (41) 205 Value Destroyed (1388) 1388 Prototype IDs (15) 300 Alien Tech Used (0) 0 Bonus (2548) 2548 TOTAL SCORE: 8241 Bonus ------- Follower Combat Kills 448 Registered with UFD 300 Met Optimus in HQ 500 Met Imprinter 300 Destroyed Z-Imprinter 1000 Cogmind --------- Core Integrity 0/850 Matter 87/300 Energy 100/100 System Corruption 0% Temperature Cool (12) Movement Walking (200) Ox1 Location -6/Deep Caves Parts ------- > --- POWER (2) -------- (None) > --- PROPULSION (4) --- Makeshift Leg Armored Leg > --- UTILITY (6) ------ Large Storage Unit Advanced Terrain Scan Processor Phasing AFG > --- WEAPON (3) ------- CR-A16's Pointy Stick > --- INVENTORY (15) --- High-capacity Storage Unit High-capacity Matter Pod (200) Large Botcube Peak State ------------ > --- POWER ------------ Zionite Light DM Reactor Zionite Light DM Reactor > --- PROPULSION ------- Armored Leg Armored Leg Armored Leg Armored Leg > --- UTILITY ---------- Experimental Heat Sink Large Storage Unit Zionite Biocell Tactical Coordination Suite Zionite Weapon Casing Improved Medium Armor Plating > --- WEAPON ----------- Beamcaster Magnetic Acceleration Cannon Bore Cannon > --- INVENTORY -------- Ion Engine Light Treads Carbon-fiber Leg Makeshift Leg Armored Leg High-capacity Storage Unit High-capacity Matter Pod Advanced Terrain Scan Processor Phasing AFG Zionite Laser-S Heavy Beamcaster Barrage Gun CR-A16's Pointy Stick Large Botcube [Rating: 87] Favorites ----------- Power Improved Deuterium Engine Engine Improved Deuterium Engine Power Core Light Nuclear Core Reactor Zionite Light DM Reactor Propulsion Armored Leg Treads Light Treads Leg Armored Leg Wheel Subdweller Monowheel Utility Large Storage Unit Device Structural Scanner Storage Large Storage Unit Processor Core Analyzer Protection Improved Medium Armor Plating Weapon Hammer Energy Gun Field Laser Ballistic Gun Battle Rifle Ballistic Cannon Magnetic Acceleration Cannon Launcher Subdweller Shrapnel Launcher Special Weapon Molecular Deconstructor Impact Weapon Hammer Slashing Weapon Power Sword Piercing Weapon CR-A16's Pointy Stick Build | -11 -10 -10 -10 -9 -6 -6 -6 -6 -6 ------- Run | Yrd Mat Min Sub Scr Fac Low Low Zio Dee Slots Evolved 8 | . . . . . 8 . . . . Power 1 | . . . . . 1 . . . . Propulsion 2 | . . . . . 2 . . . . Utility 4 | . . . . . 4 . . . . Weapon 1 | . . . . . 1 . . . . Parts Attached 85 | 6 7 . 14 4 16 5 2 7 24 Power 14 | 1 1 . 2 1 2 3 1 . 3 Engine 7 | 1 . . 1 1 1 1 1 . 1 Core 5 | . 1 . 1 . 1 2 . . . Reactor 2 | . . . . . . . . . 2 Propulsion 23 | 2 2 . 5 2 6 . . . 6 Treads 9 | 2 2 . . 2 2 . . . 1 Leg 13 | . . . 4 . 4 . . . 5 Wheel 1 | . . . 1 . . . . . . Hover . | . . . . . . . . . . Flight . | . . . . . . . . . . Utility 26 | 1 2 . 1 1 5 1 . 6 9 Device 9 | . 1 . . . 1 . . 4 3 Storage 5 | 1 1 . . 1 . . . 1 1 Processor 5 | . . . . . 3 . . 1 1 Hackware . | . . . . . . . . . . Protection 7 | . . . 1 . 1 1 . . 4 Artifact . | . . . . . . . . . . Weapon 22 | 2 2 . 6 . 3 1 1 1 6 Energy Gun 6 | . . . . . 2 . . . 4 Energy Cannon . | . . . . . . . . . . Ballistic Gun 8 | 2 1 . 4 . . 1 . . . Ballistic Cannon 2 | . . . . . . . . . 2 Launcher 2 | . . . 2 . . . . . . Special Weapon 1 | . . . . . . . 1 . . Impact Weapon 1 | . 1 . . . . . . . . Slashing Weapon 1 | . . . . . 1 . . . . Piercing Weapon 1 | . . . . . . . . 1 . Special Melee Weapon . | . . . . . . . . . . Unidentified Prototypes 8 | . . . . . 1 . 1 1 5 Parts Lost 39 | . 1 . 5 . . 2 1 . 30 Power 6 | . . . . . . . 1 . 5 Propulsion 10 | . . . 3 . . . . . 7 Utility 12 | . . . . . . 1 . . 11 Weapon 11 | . 1 . 2 . . 1 . . 7 Highest Loss Streak 17 | . 1 . 2 . . 2 1 . 17 To Critical Strikes 1 | . . . 1 . . . . . . Average Backups 13 | 2 7 12 14 14 12 14 14 14 12 Power 1 | . 1 2 1 1 1 1 1 1 . Propulsion 3 | 1 3 4 3 3 3 3 3 3 3 Utility 5 | . 1 4 6 7 5 6 7 5 3 Weapon 2 | . . 2 3 1 1 2 2 4 3 Tool/Special . | . . . . . . . . . . Unused Backups 57 | . 1 . 5 22 8 2 1 3 15 Power 2 | . . . 1 1 . . . . . Propulsion 15 | . 1 . 1 6 4 1 . . 2 Utility 23 | . . . 2 7 4 1 . 2 7 Weapon 17 | . . . 1 8 . . 1 1 6 Tool/Special . | . . . . . . . . . . Average Slot Usage (%) 97 | . 94 100 99 100 99 100 95 93 91 Engine 8 | . 4 . 4 10 12 4 8 13 3 Core 4 | . 9 14 9 3 . 8 . . 1 Treads 13 | . 28 28 13 21 21 . . . . Leg 13 | . . . 11 6 4 26 26 26 24 Device 8 | . 8 14 10 . 5 2 . 19 13 Storage 10 | . 14 14 14 14 6 6 6 6 11 Processor 4 | . . . . . 19 20 20 5 1 Protection 8 | . . . 3 14 6 10 13 6 10 Energy Gun 2 | . . . . . 12 8 5 . 6 Ballistic Gun 9 | . 23 14 20 14 . 3 5 . . Special Weapon 1 | . . . . . . . . 6 1 Impact Weapon 6 | . 4 14 7 14 3 . . . . Slashing Weapon 1 | . . . . . 2 6 6 2 . Peak Build Rating 87 | 6 10 11 17 22 70 72 74 86 87 Average Rating 40 | 5 8 10 13 18 54 66 62 84 77 On Entrance 35 | . 6 10 11 15 20 70 63 74 85 Avg Prop Armor Cover (%) 13 | . . . 14 . 15 . . . 5 Naked Turns . | . . . . . . . . . . Heaviest Build 90 | 11 29 29 36 37 55 61 64 84 90 Greatest Support 93 | 40 40 40 40 50 93 68 68 68 68 Greatest Overweight (x) 3 | 1 . . 1 1 3 . . 1 1 Average Overweight (x) . | . . . . . . . . . . Largest Inventory Capacity 20 | 8 15 15 15 15 15 15 15 20 15 Average Capacity 14 | 6 9 15 15 15 15 15 15 15 15 Most Carried 15 | 4 10 14 15 15 15 15 15 15 15 Average Carried 13 | 2 7 12 14 14 12 14 14 14 13 Final Capacity 15 | 8 15 15 15 15 15 15 15 15 15 Final Carried 15 | 4 10 14 15 13 15 14 15 15 4 Class Distribution -------------------- 60% | Mutant 26% | Commander-Mutant 8% | Derelict-Mutant 4% | Scavenger-Tank Dominant Class ---------------- Mutant | -10/Materials Mutant | -10/Mines Mutant | -10/Subcaves Mutant | -9/Scraptown Derelict-Mutant | -6/Factory Commander-Mutant | -6/Lower Caves Commander-Mutant | -6/Lower Caves Commander-Mutant | -6/Zion Scavenger-Tank | -6/Deep Caves Resources | -11 -10 -10 -10 -9 -6 -6 -6 -6 -6 ----------- Run | Yrd Mat Min Sub Scr Fac Low Low Zio Dee Matter Collected 1889 | 134 381 121 413 50 126 114 83 107 360 Remotely . | . . . . . . . . . . Salvage Created 1625 | . 404 38 347 . 277 181 60 . 318 Parts 75 | . 15 1 19 . 17 10 3 . 10 Haulers Intercepted 1 | . 1 . . . . . . . . Recyclers Shooed . | . . . . . . . . . . Parts Field Recycled . | . . . . . . . . . . Retrieved Matter . | . . . . . . . . . . Parts Self-Destructed 35 | . . . 19 . . 7 9 . . Prevented 2 | . . . . . . 2 . . . Parts Restored . | . . . . . . . . . . Kills | -11 -10 -10 -10 -9 -6 -6 -6 -6 -6 ------- Run | Yrd Mat Min Sub Scr Fac Low Low Zio Dee Combat Hostiles Destroyed 40 | . 7 . 11 . 7 3 2 . 10 Melee 6 | . . . 2 . 3 1 . . . Guns 25 | . 7 . 5 . 4 2 2 . 5 Cannons 4 | . . . . . . . . . 4 AOE 2 | . . . 2 . . . . . . Classes Destroyed 14 | . 5 1 3 . . 2 1 . 2 Worker 2 | . 1 1 . . . . . . . Builder 1 | . 1 . . . . . . . . Tunneler 2 | . . 1 . . 1 . . . . Hauler 1 | . 1 . . . . . . . . Watcher 1 | . 1 . . . . . . . . Swarmer 7 | . . . 1 . 5 . 1 . . Grunt 10 | . 7 . 2 . . 1 . . . Brawler 1 | . . . . . . 1 . . . Sentry 3 | . . . 1 . 2 . . . . Programmer 1 | . . . . . . . 1 . . Subdweller 7 | . . . 7 . . . . . . Z-Light 3 | . . . . . . . . . 3 Assembled 6 | . . . . . . . . . 6 Mutant 1 | . . . . . . 1 . . . Best Kill Streak 6 | . 6 1 2 . 3 1 1 . 3 Combat Bots Only 3 | . 3 . 2 . 3 1 1 . 3 Max Kills in Single Turn 2 | . 1 1 2 . 1 1 1 . 2 Gunslinging . | . . . . . . . . . . Exploded 2 | . . . 2 . . . . . . Melee 1 | . . . 1 . 1 1 . . . Uniques/NPCs Destroyed 1 | . . . . . . . . . 1 Z-Imprinter (-6/Deep Caves) Combat | -11 -10 -10 -10 -9 -6 -6 -6 -6 -6 -------- Run | Yrd Mat Min Sub Scr Fac Low Low Zio Dee Hostile Shots Fired 393 | . 38 . 70 . 53 34 24 . 174 Missed 87 | . 9 . 12 . 16 6 4 . 40 Hits 306 | . 29 . 58 . 37 28 20 . 134 Projectile 306 | . 29 . 58 . 37 28 20 . 134 Critical Strikes 3 | . 1 . 2 . . . . . . Damage Taken 7789 | . 359 . 1242 . 487 306 295 . 5100 Core 1127 | . 79 . 154 . 63 32 . . 799 Absorbed by Shields . | . . . . . . . . . . Redirected to Shielding 318 | . . . . . . . . . 318 Regen/Repaired (Parts) 64 | . . . . . . . . 64 . Core Remaining (%) 53 | 100 . . . 6 . . . . . Volleys Fired 137 | . 35 . 27 . 9 7 11 . 48 Largest 3 | . 2 . 2 . 2 2 2 . 3 Hottest 216 | . 40 . 65 . 123 123 91 . 216 Shots Fired 283 | . 69 . 54 . 18 14 22 . 106 Gun 225 | . 69 . 51 . 18 14 22 . 51 Cannon 46 | . . . . . . . . . 46 Launcher 3 | . . . 3 . . . . . . Special 9 | . . . . . . . . . 9 Kinetic 185 | . 69 . 52 . . 6 12 . 46 Thermal 77 | . . . . . 9 7 10 . 51 Explosive 2 | . . . 2 . . . . . . Electromagnetic 10 | . . . . . 9 1 . . . Robot Hit Streak 16 | . 14 . 16 . 6 5 4 . 8 Robot Miss Streak 8 | . 4 . 3 . 4 5 8 . 5 Penetration Max . | . . . . . . . . . . Secondary Targets 5 | . . . 1 . 2 1 1 . . Max Gunslinging Chain 1 | . . . 1 . 1 1 1 . . Shots Hit Robots 222 | . 46 2 64 . 15 17 14 . 64 Core Hits 95 | . 21 . 14 . 10 17 15 . 18 Critical Kills 2 | . 1 . . . . . . . 1 Critical Parts Destroyed 9 | . 1 . 3 . 1 . . . 4 Critical Strikes 14 | . 2 . 3 . 1 . . . 8 Burn 2 | . . . . . . . . . 2 Destroy 7 | . 1 . . . . . . . 6 Smash 5 | . 1 . 3 . 1 . . . . Melee Attacks 85 | . 3 2 41 . 22 8 1 2 6 Impact 60 | . 3 2 41 . 14 . . . . Slashing 19 | . . . . . 8 8 1 2 . Piercing 6 | . . . . . . . . . 6 Sneak Attacks 4 | . . 2 1 . 1 . . . . Combat Hostiles 1 | . . . 1 . . . . . . Follow-up Attacks . | . . . . . . . . . . Damage Inflicted 4347 | . 498 125 1109 . 450 450 269 . 1446 Guns 2301 | . 460 . 476 . 175 200 269 . 721 Cannons 515 | . . . . . . . . . 515 Explosions 259 | . . . 259 . . . . . . Melee 1249 | . 20 125 374 . 275 250 . . 205 Ramming 23 | . 18 . . . . . . . 5 Kinetic 1915 | . 460 . 656 . . 110 174 . 515 Thermal 919 | . . . . . 35 68 95 . 721 Explosive 79 | . . . 79 . . . . . . Electromagnetic 162 | . . . . . 140 22 . . . Impact 582 | . 20 125 374 . 63 . . . . Slashing 462 | . . . . . 212 250 . . . Piercing 205 | . . . . . . . . . 205 Highest Corruption 6 | . . . . . 1 3 6 6 . Average Corruption 2 | . . . . . 1 2 5 6 . Corruption Purged . | . . . . . . . . . . Corruption Blocked . | . . . . . . . . . . Effects 25 | . . . . . 4 7 12 2 . Message Errors 8 | . . . . . 2 1 5 . . Matter Fused 4 | . . . . . . 1 2 1 . Heat Flow Errors 2 | . . . . . . 1 . 1 . Energy Discharges 4 | . . . . . 2 1 1 . . Data Loss (minor) 3 | . . . . . . 1 2 . . Data Loss (major) 2 | . . . . . . 2 . . . Misfires 1 | . . . . . . . 1 . . Weapon Failures 1 | . . . . . . . 1 . . Overload Shots . | . . . . . . . . . . Overflow Damage 260 | . 20 45 129 . 37 . . . 29 Projectiles 29 | . . . . . . . . . 29 Explosions . | . . . . . . . . . . Melee 231 | . 20 45 129 . 37 . . . . Knockbacks 7 | . . . 2 . . . . . 5 Impact 2 | . . . 2 . . . . . . Kinetic 5 | . . . . . . . . . 5 Secondary . | . . . . . . . . . . Self-Inflicted Damage 19 | . . . 19 . . . . . . Shots 1 | . . . 1 . . . . . . Rammed 3 | . 3 . . . . . . . . Targets Rammed 4 | . 3 . . . . . . . 1 Kicked 1 | . . . . . . . . . 1 Crushed . | . . . . . . . . . . Highest Temperature 551 | . 18 . 2 . 189 162 152 105 551 Average Temperature 130 | . 7 . 2 . 72 66 61 53 202 Received Heat Transfer 1605 | . 219 . 252 . 45 18 . . 1071 Effects 26 | . . . . . . . . . 26 Shutdowns 6 | . . . . . . . . . 6 Energy Bleed 4 | . . . . . . . . . 4 Interference 8 | . . . . . . . . . 8 Matter Decay 2 | . . . . . . . . . 2 Short Circuit 2 | . . . . . . . . . 2 Damage (minor) 1 | . . . . . . . . . 1 Damage (major) 3 | . . . . . . . . . 3 Siege Activations . | . . . . . . . . . . Martial Activations . | . . . . . . . . . . Shielding Activations . | . . . . . . . . . . Robots Disrupted . | . . . . . . . . . . Combat Hostiles . | . . . . . . . . . . Robots Corrupted 5 | . 1 1 2 . 1 . . . . Combat Hostiles 2 | . . . 2 . . . . . . Parts Fried 11 | . 2 4 2 . 3 . . . . Impact Corruptions 7 | . 1 2 3 . 1 . . . . Robots Melted . | . . . . . . . . . . Combat Hostiles . | . . . . . . . . . . Parts Melted 3 | . . . 2 . . 1 . . . Heat Transferred 1738 | . . . . . 74 148 185 . 1331 Parts Sabotaged . | . . . . . . . . . . Parts Stolen . | . . . . . . . . . . Parts Stripped . | . . . . . . . . . . Power Chain Reactions . | . . . . . . . . . . Alert | -11 -10 -10 -10 -9 -6 -6 -6 -6 -6 ------- Run | Yrd Mat Min Sub Scr Fac Low Low Zio Dee Maximum Alert Level 1 | . . . . . 1 . . . . Low Security (%) 99 | 100 100 100 . . 99 . . . . Level 1 . | . . . . . . . . . . Level 2 . | . . . . . . . . . . Level 3 . | . . . . . . . . . . Level 4 . | . . . . . . . . . . Level 5 . | . . . . . . . . . . High Security . | . . . . . . . . . . Max Security . | . . . . . . . . . . Peak Influence 200 | . 80 5 . . 200 . . . . Initial . | . . . . . . . . . . Average 27 | . 27 . . . 49 . . . . Influence Increases 1079 | . 244 10 208 . 384 124 109 . . Destroy 0b10 Robot/C 640 | . 140 . 160 . 200 80 60 . . Destroy 0b10 Robot/NC 35 | . 20 10 . . 5 . . . . Destroy Leader 124 | . 24 . 20 . 50 10 20 . . Allied During Kill 121 | . . . 28 . 30 34 29 . . Successful Hack 44 | . 44 . . . . . . . . Disable Machine 45 | . 15 . . . 30 . . . . Destroy Structure 40 | . 1 . . . 39 . . . . Lose Combat Pursuer 30 | . . . . . 30 . . . . Influence Decreases 1079 | . 244 10 208 . 208 300 109 . . Entered New Map 66 | . . . . . . 66 . . . Time Decay 983 | . 234 10 208 . 208 214 109 . . Lost Part 30 | . 10 . . . . 20 . . . Squads Dispatched 2 | . . . . . 2 . . . . Investigation . | . . . . . . . . . . Extermination 1 | . . . . . 1 . . . . Reinforcement 1 | . . . . . 1 . . . . Assault . | . . . . . . . . . . Garrison . | . . . . . . . . . . Intercept . | . . . . . . . . . . Searches Triggered . | . . . . . . . . . . Construction Impeded . | . . . . . . . . . . Haulers Reinforced . | . . . . . . . . . . Active Scanning Responses . | . . . . . . . . . . Cargo Convoy Interrupts . | . . . . . . . . . . Stealth | -11 -10 -10 -10 -9 -6 -6 -6 -6 -6 --------- Run | Yrd Mat Min Sub Scr Fac Low Low Zio Dee Distress Signals 3 | . 2 . . . 1 . . . . Communications Jammed . | . . . . . . . . . . Distress Signals . | . . . . . . . . . . Times Spotted 64 | . 12 . 19 . 13 4 3 . 13 Peak Tracking Total 4 | . 4 . 3 . 4 3 2 . 3 Tactical Retreats 2 | . . . 1 . 1 . . . . Traps | -11 -10 -10 -10 -9 -6 -6 -6 -6 -6 ------- Run | Yrd Mat Min Sub Scr Fac Low Low Zio Dee Traps Triggered 2 | . . . 1 . 1 . . . . Indirectly . | . . . . . . . . . . Trap Hack Attempts . | . . . . . . . . . . Triggered . | . . . . . . . . . . Disarmed . | . . . . . . . . . . Reprogrammed . | . . . . . . . . . . Reused . | . . . . . . . . . . Traps Extracted . | . . . . . . . . . . Installed . | . . . . . . . . . . Triggered . | . . . . . . . . . . Machines | -11 -10 -10 -10 -9 -6 -6 -6 -6 -6 ---------- Run | Yrd Mat Min Sub Scr Fac Low Low Zio Dee Machines Disabled 5 | . 1 . . . 2 1 1 . . Max in Single Turn 1 | . 1 . . . . 1 1 . . Machines Repaired . | . . . . . . . . . . Machines Dismantled . | . . . . . . . . . . Machines Sabotaged . | . . . . . . . . . . Overloaded Fab Kills . | . . . . . . . . . . Hacking | -11 -10 -10 -10 -9 -6 -6 -6 -6 -6 --------- Run | Yrd Mat Min Sub Scr Fac Low Low Zio Dee Machines Accessed 14 | . 7 . 1 3 2 1 . . . Terminals 8 | . 7 . . . 1 . . . . Fabricators . | . . . . . . . . . . Repair Stations . | . . . . . . . . . . Recycling Units . | . . . . . . . . . . Scanalyzers . | . . . . . . . . . . Garrison Access 1 | . . . . . 1 . . . . Total Hacks 40 | . 24 . 4 8 3 1 . . . Successful 26 | . 13 . 4 8 . 1 . . . Failed 13 | . 10 . . . 3 . . . . Catastrophic 2 | . . . . . 2 . . . . Database Lockouts 1 | . 1 . . . . . . . . Manual 29 | . 22 . . . 2 . 1 4 . Terminals 26 | . 24 . . . 2 . . . . Fabricators . | . . . . . . . . . . Repair Stations . | . . . . . . . . . . Recycling Units . | . . . . . . . . . . Scanalyzers . | . . . . . . . . . . Garrison Access 1 | . . . . . 1 . . . . Terminal Hacks 17 | . 4 . 4 8 . 1 . . . Record 8 | . . . 4 4 . . . . . Robot Analysis 5 | . 1 . . 4 . . . . . Open Door 1 | . . . . . . 1 . . . Terminal Index 1 | . 1 . . . . . . . . Hauler Manifests 1 | . 1 . . . . . . . . Zone Layout 1 | . 1 . . . . . . . . Fabricator Hacks . | . . . . . . . . . . Repair Station Hacks . | . . . . . . . . . . Recycling Unit Hacks . | . . . . . . . . . . Scanalyzer . | . . . . . . . . . . Garrison Access Hacks . | . . . . . . . . . . Unauthorized Hacks 9 | . 9 . . . . . . . . Terminals 9 | . 9 . . . . . . . . Botnet 2 | . 2 . . . . . . . . Operators 1 | . 1 . . . . . . . . Skim 6 | . 6 . . . . . . . . Fabricators . | . . . . . . . . . . Repair Stations . | . . . . . . . . . . Recycling Units . | . . . . . . . . . . Scanalyzers . | . . . . . . . . . . Garrison Access . | . . . . . . . . . . Data Cores Recovered . | . . . . . . . . . . Used . | . . . . . . . . . . Hacking Detections 8 | . 6 . . . 2 . . . . Full Trace Events . | . . . . . . . . . . Feedback Events . | . . . . . . . . . . Feedback Blocked . | . . . . . . . . . . Robot Schematics Acquired . | . . . . . . . . . . Robots Built . | . . . . . . . . . . Authchips . | . . . . . . . . . . Time . | . . . . . . . . . . Total Robot Build Rating . | . . . . . . . . . . Part Schematics Acquired . | . . . . . . . . . . Parts Built . | . . . . . . . . . . Authchips . | . . . . . . . . . . Time . | . . . . . . . . . . Total Part Build Rating . | . . . . . . . . . . Part Studies Acquired . | . . . . . . . . . . Parts Repaired . | . . . . . . . . . . Time . | . . . . . . . . . . Parts Recycled . | . . . . . . . . . . Recycled Matter . | . . . . . . . . . . Retrieved Matter . | . . . . . . . . . . Retrieved Components . | . . . . . . . . . . Parts Scanalyzed . | . . . . . . . . . . Part Schematics Acquired . | . . . . . . . . . . Parts Damaged . | . . . . . . . . . . Bothacking | -11 -10 -10 -10 -9 -6 -6 -6 -6 -6 ------------ Run | Yrd Mat Min Sub Scr Fac Low Low Zio Dee Used RIF Installer . | . . . . . . . . . . Robots Hacked . | . . . . . . . . . . Non-combat . | . . . . . . . . . . Combat . | . . . . . . . . . . Robot Hacks Applied . | . . . . . . . . . . Relay Couplers Released . | . . . . . . . . . . Fabnet Peak Effective % . | . . . . . . . . . . Robots Rewired 4 | . . . . . . 4 . . . Allies Hacked 1 | . . . . . . . 1 . . Hacks Repelled . | . . . . . . . . . . Allies | -11 -10 -10 -10 -9 -6 -6 -6 -6 -6 -------- Run | Yrd Mat Min Sub Scr Fac Low Low Zio Dee Total Allies 8 | . . 3 . 1 . 4 . . . Largest Group 5 | . . 3 3 1 1 5 5 4 4 Highest-Rated Group 180 | . . 40 40 73 73 180 180 151 151 Highest-Rated Ally 73 | . . 16 16 73 73 73 73 73 73 Total Orders 2 | . . . . . 2 . . . . STAY 1 | . . . . . 1 . . . . FOLLOW 1 | . . . . . 1 . . . . Ally Attacks 157 | . . . 67 . 11 11 7 . 61 Total Damage 2279 | . . . 589 . 686 157 37 . 810 Kills 22 | . . . 8 . 3 2 2 . 7 Allies Corrupted . | . . . . . . . . . . Allies Melted 1 | . . . . . . . . . 1 Intel | -11 -10 -10 -10 -9 -6 -6 -6 -6 -6 ------- Run | Yrd Mat Min Sub Scr Fac Low Low Zio Dee Active Infowar (turns) 6696 | . 402 833 1497 . 1152 550 482 1780 . Sensors 1369 | . . . . . 1147 222 . . . Terrain 1272 | . . . . . . . . 1272 . Structural 2732 | . 402 833 1497 . . . . . . Decoding 2692 | . . . . . 1152 550 482 508 . Robot Analysis Total 5 | . 1 . . 4 . . . . . Derelict Logs Recovered 7 | . . 1 . 4 . 2 . . . Drone Launches . | . . . . . . . . . . Drone Recoveries . | . . . . . . . . . . Decoded 0b10 Intel 43 | . . . . . 43 . . . . Items 43 | . . . . . 43 . . . . Exploration | -11 -10 -10 -10 -9 -6 -6 -6 -6 -6 ------------- Run | Yrd Mat Min Sub Scr Fac Low Low Zio Dee Turns Passed 13616 | 67 648 833 2056 4127 1152 550 482 2656 1045 Spaces Moved 7612 | 38 323 471 1151 2417 634 362 345 1421 450 Core 6 | 6 . . . . . . . . . Treads 3691 | 32 323 471 416 1922 527 . . . . Legs 3564 | . . . 384 495 107 362 345 1421 450 Wheels 351 | . . . 351 . . . . . . Hover . | . . . . . . . . . . Flight . | . . . . . . . . . . Fastest Speed 50 | 50 160 160 120 160 122 122 122 122 120 Average Speed 162 | 143 160 160 154 166 153 122 122 184 178 Slowest Speed 330 | 160 160 160 240 190 330 122 122 192 200 Overloaded Moves . | . . . . . . . . . . Propulsion Burnouts . | . . . . . . . . . . Robots Hopped . | . . . . . . . . . . Potential Cave-ins . | . . . . . . . . . . Cave-ins Triggered . | . . . . . . . . . . Exploration Rate (%) 59 | 4 71 87 76 90 16 49 52 86 66 Regions Visited 9 Branch Regions 7 Pre-discovered Areas 2 | . . . . 1 . 1 . . . Known Exits Taken 5 | . 1 1 . . 1 1 1 . . Unknown Exits Taken 4 | 1 . . 1 1 . . . 1 . Scrap Searched 32 | . . 2 12 10 . 2 2 4 . Spaces Dug 8 | . 1 . 4 . 3 . . . . Terrain Destroyed 27 | . 1 . 15 . 3 . . . 8 Melee 8 | . 1 . 4 . 3 . . . . Projectile 8 | . . . . . . . . . 8 AOE 11 | . . . 11 . . . . . . Terrain Rammed . | . . . . . . . . . . Walls Destroyed . | . . . . . . . . . . Machines Disabled . | . . . . . . . . . . Actions | -11 -10 -10 -10 -9 -6 -6 -6 -6 -6 --------- Run | Yrd Mat Min Sub Scr Fac Low Low Zio Dee Total 8466 | 47 386 547 1309 2546 762 448 383 1460 578 Wait 318 | . 7 71 41 60 45 34 19 10 31 Move 7603 | 37 322 470 1150 2416 633 361 344 1420 450 Hop . | . . . . . . . . . . Pick Up 104 | 4 6 4 12 30 21 7 3 9 8 Fast Attach 18 | 6 1 . 1 . 3 . 1 1 5 Attach 35 | . 1 . 4 . 7 3 1 2 17 Detach . | . . . . . . . . . . Swap 56 | . 5 . 24 5 6 3 . 6 7 Drop 89 | . 3 . 9 35 16 8 3 10 5 Fire 137 | . 35 . 27 . 9 7 11 . 48 Melee 85 | . 3 2 41 . 22 8 1 2 6 Ram . | . . . . . . . . . . Kick 1 | . . . . . . . . . 1 Crush 3 | . 3 . . . . . . . . Escape Stasis . | . . . . . . . . . . Rewire 17 | . . . . . . 17 . . . Trap . | . . . . . . . . . . Miscellaneous . | . . . . . . . . . . Route ------- -11/Scrapyard -10/Materials (discovered 6 exits: *Mat x3 / *Min x2 / Sub) -10/Mines (discovered 4 exits: *Mat x2 / *Exi / *Sub) -10/Subcaves (discovered 3 exits: *Mat x2 / *Scr) -9/Scraptown (discovered 2 exits: *Fac x2) -6/Factory (discovered 3 exits: [*Fac] / *Low x2) -6/Lower Caves -6/Lower Caves -6/Zion (discovered 2 exits: [*Dee] / [*Pro]) -6/Deep Caves (discovered 1 exit: [*Pro]) History --------- Turn | Location | Event 5 | -11/Scrapyard | Discovered new exit (range 16) 68 | -11/Scrapyard | Entered Materials 253 | -10/Materials | Discovered new exit (range 9) 304 | -10/Materials | Build established: Mutant 367 | -10/Materials | Central database locked down 420 | -10/Materials | Discovered new exit (range 16) 435 | -10/Materials | Learned location of 2 exits from Mines 494 | -10/Materials | Identified exit to Materials 494 | -10/Materials | Identified exit to Subcaves 544 | -10/Materials | Learned location of 1 exit from Storage 582 | -10/Materials | Identified exit to Mines 646 | -10/Materials | Learned 8 Materials zone layouts 691 | -10/Materials | Learned location of 2 exits from Subcaves 716 | -10/Materials | Entered Mines 717 | -10/Mines | Identified exit to Exiles 832 | -10/Mines | Discovered exit to Materials (range 5) 984 | -10/Mines | Assisted by bots powering up and referring to "LRC-V3" 1022 | -10/Mines | Found a damaged Exp. Sensor Array with a note attached 1026 | -10/Mines | Found Prototype Device 1053 | -10/Mines | YI-UF0 nonchalantly dropped a Grenade Launcher on the ground 1090 | -10/Mines | Deemed a non-threat by the Exiles lab entrance 1162 | -10/Mines | Discovered exit to Materials (range 8) 1271 | -10/Mines | Learned 8 Materials zone layouts 1549 | -10/Mines | Entered Subcaves 1549 | -10/Subcaves | Accompanied by 3 allies 1550 | -10/Subcaves | Approached by a straggling Scientist 1550 | -10/Subcaves | Identified exit to Materials 1554 | -10/Subcaves | Shifting Twisted Machinery released Mak. Light Armor Plating 1555 | -10/Subcaves | Shifting Twisted Machinery released Sub. Laser 1705 | -10/Subcaves | A swath of the cavern ceiling suddenly collapsed 1840 | -10/Subcaves | Visited Clippyterm 1845 | -10/Subcaves | Learned Research machine intel 2077 | -10/Subcaves | Scientist uncovered a shortcut to Scraptown 2181 | -10/Subcaves | A swath of the cavern ceiling suddenly collapsed 2446 | -10/Subcaves | Disturbed a concealed Subdweller 2448 | -10/Subcaves | Core integrity fell below 50% 2821 | -10/Subcaves | Shifting Twisted Machinery released Flamer 3283 | -10/Subcaves | Core integrity fell below 20% 3605 | -10/Subcaves | Entered Scraptown 3792 | -9/Scraptown | Visited UFD Registry 3792 | -9/Scraptown | Registered with UFD as "Matrixblaster" 3898 | -9/Scraptown | Visited Research Penetration Think Tank 3951 | -9/Scraptown | Visited Derelict Rescue Squad 3985 | -9/Scraptown | Visited Analyses Database 4018 | -9/Scraptown | Visited Scrap Suit Storage 4088 | -9/Scraptown | Visited Botcube Research 4120 | -9/Scraptown | Visited DA-N13 Charitable Foundation 4151 | -9/Scraptown | Visited Junk Repository 4212 | -9/Scraptown | Visited Abandonware Association 4324 | -9/Scraptown | Visited SPCMW 4364 | -9/Scraptown | Visited Awakened 4417 | -9/Scraptown | Scanned Subdweller tech in exchange for log data 4421 | -9/Scraptown | Learned Research terminal intel 4422 | -9/Scraptown | Learned Factory terminal intel 4424 | -9/Scraptown | Learned location of 1 exit from Factory 4426 | -9/Scraptown | Learned Research interactive machine intel 4472 | -9/Scraptown | Heard Great Nut preacher, LISTEN AND RECITE! 4672 | -9/Scraptown | Visited Bundlers 4762 | -9/Scraptown | Visited Fellowship of the Rings 4831 | -9/Scraptown | Visited Curators Association 4864 | -9/Scraptown | Visited Infowarlord's Domain 4864 | -9/Scraptown | Identified Exp. Sensor Array 5401 | -9/Scraptown | Found DCF Scrap (29 items) 5453 | -9/Scraptown | Found Lrg. Botcube 6163 | -9/Scraptown | Found Scrap Suit 6310 | -9/Scraptown | Learned abandonware demo "OVRCLOCK.EXE" 6313 | -9/Scraptown | Learned abandonware demo "REPAIR.EXE" 6313 | -9/Scraptown | Learned abandonware demo "KABOOM.EXE" 6371 | -9/Scraptown | Visited IN-MT5's Study 6449 | -9/Scraptown | Visited The Evicted 6985 | -9/Scraptown | Discovered new exit (range 11) 7504 | -9/Scraptown | Lrg. Botcube activated 7538 | -9/Scraptown | Lrg. Botcube completed mutation into legged form, armed with 4 guns. 7617 | -9/Scraptown | Met Optimus 7617 | -9/Scraptown | Accepted into 0bPrime 7708 | -9/Scraptown | Discovered new exit (range 3) 7732 | -9/Scraptown | Entered Factory 7732 | -6/Factory | Accompanied by 1 ally 7732 | -6/Factory | Evolved 8 slots: Power x1, Propulsion x2, Utility x4, Weapon x1 7733 | -6/Factory | Identified exit to Lower Caves 7734 | -6/Factory | Loaded intel: 26 terminal locations 8029 | -6/Factory | Build established: Derelict-Mutant 8339 | -6/Factory | Discovered exit to Lower Caves (range 7) 8431 | -6/Factory | Discovered new exit (range 12) 8884 | -6/Factory | Entered Lower Caves 8884 | -6/Lower Caves | Accompanied by 1 ally 8972 | -6/Lower Caves | Build established: Mutant 9095 | -6/Lower Caves | Learned location of Extension (-4) 9102 | -6/Lower Caves | Attacked by a delusional Derelict stockpiling Unaware 9248 | -6/Lower Caves | Identified exit to Lower Caves 9434 | -6/Lower Caves | Entered another Lower Caves area 9434 | -6/Lower Caves | Accompanied by 5 allies 9439 | -6/Lower Caves | Build established: Commander-Mutant 9822 | -6/Lower Caves | Acquired the password to a Derelict Tinkerer's latest research 9831 | -6/Lower Caves | Found Prototype Special Weapon 9831 | -6/Lower Caves | Identified Molecular Deconstructor 9888 | -6/Lower Caves | Discovered new exit (range 6) 9893 | -6/Lower Caves | Identified exit to Zion 9916 | -6/Lower Caves | Entered Zion 9916 | -6/Zion | Accompanied by 4 allies 9986 | -6/Zion | System corruption cleaned by Quarantine Array 10028 | -6/Zion | Acquired unknown access codes intercepted by a Zionite 10106 | -6/Zion | Found Prototype Device 10106 | -6/Zion | Identified Phasing AFG 10723 | -6/Zion | Learned Factory emergency access door positions 10887 | -6/Zion | Turned away by Imprinter 10956 | -6/Zion | Found CR-A16's Pointy Stick 11788 | -6/Zion | Discovered new exit (range 8) 12520 | -6/Zion | Opened final containment barrier to the Deep Caves 12548 | -6/Zion | Discovered new exit (range 3) 12548 | -6/Zion | Saw the warning signs outside the Deep Caves entrance 12572 | -6/Zion | Entered Deep Caves 12572 | -6/Deep Caves | Accompanied by 4 allies 12690 | -6/Deep Caves | Attacked by Z-Imprinter 12756 | -6/Deep Caves | Found Prototype Protection 12756 | -6/Deep Caves | Identified Zio. Weapon Casing 12757 | -6/Deep Caves | Destroyed Z-Imprinter 12779 | -6/Deep Caves | Lost 6 parts (1p4u1w) 12787 | -6/Deep Caves | Found Lrg. Botcube 12883 | -6/Deep Caves | Z-Facility disabled 12926 | -6/Deep Caves | Found Zio. Weapon Casing 12957 | -6/Deep Caves | Lost 4 parts (1p1n2u) 12980 | -6/Deep Caves | Found Zio. Weapon Casing 13186 | -6/Deep Caves | Build established: Scavenger-Tank 13316 | -6/Deep Caves | Discovered new exit (range 11) 13460 | -6/Deep Caves | Spotted AG-87853 13470 | -6/Deep Caves | Core integrity fell below 50% 13531 | -6/Deep Caves | Core integrity fell below 20% 13558 | -6/Deep Caves | Lost 17 parts (3p5n4u5w) 13617 | -6/Deep Caves | Destroyed by AG-87853 with Assembled Focal Cannon Last Messages --------------- 13499_ Carbon-fiber Leg destroyed. 13499_ Phase Shifter destroyed. 13499_ Bore Cannon destroyed. 13502_ Magnetic Acceleration Cannon destroyed. 13502_ Identified Zio. Laser-S. 13507_ Zio. Laser-S destroyed. 13513_ Beamcaster destroyed. 13517_ Zio. Laser-S destroyed. 13517_ Lgt. Angular Momentum Engine destroyed. 13517_ Carbon-fiber Leg destroyed. 13518_ AG-87853 suffers critical hit (Burn). 13527_ Arm. Leg destroyed. 13527_ Zio. Biocell destroyed. 13600_ Hvy. Beamcaster destroyed. 13606_ Exp. Heat Sink destroyed. 13614_ AG-87853 Prototype Reactor integration complete. 13615_ AG-87853 GOLEM Unit beginning Prototype Energy Cannon integration. 13617_ Lgt. Treads destroyed. Map ----- +----------------------------------------------------+ | ?????????????????# #??# #??# ### # | | ?????????????????# " #??# #?## ####?# ## # | | ????????????????## """ #??# #?# #??? #### | | ????????????????#" "" #??# #?# #?? #### | | ???????????????## #### ### #< # #### | | ???????????????# ## ########### | | ???????????????# # #???## | | ???????????????# # #####" ##?## | | ???????????????### # #???## ### #### | | ?????????????????# # ##???## ##?## | | ?????????????????# # ##???## ## ##?## | | ???????= #????# ##???########### ##??# | | ????? #??## ##????????????####???# | | ?? = #??# ##??????????????????## | | #??# ##???????????? ?????## | | = #??## ##????????## ??????# | | = #???#### #??????? ?????# | | #????### #?????? ?????? | | // #????# ##????? ????? | | ##??# #### ##?????# #### | | / / #?# #???# #?????# | | ## #????# ##???# | | ## #?????## ##?# ### ### | | / / ;##########;# ## #???????# | | ##??????# | | / @ #??????# | | [ G #?????## | | % ################# ???# | | % #???????????????## ##### ???? | | ##????????????????? ##???????? ???? | | # # "#?????????????????# #?????????????? | | #### ## ## ###??????????????????###?????????????? | | ????# ?# ?###????????????????????????????????????? | | ????#??# ????????????????????????????????????????? | | ????????#????????????????????????????????????????? | | | | | | | | | | | | | | | | | | | | | | | | | | | | | | | +----------------------------------------------------+ Best States ------------- Heat Dissipation 63 Energy Generation 49 Energy Capacity 950 Matter Stores 300 Matter Capacity 300 Sight Range 16 Robot Scan Range 20 Terrain Scan Range 16 Terrain Scan Density 210 Armor Coverage 675 Weapon Shielding 100 Phase Shifting 5 Evasion (%) 65 Targeting Accuracy 8 Core Analysis 6 Recoil Reduction 4 Item Schematics ----------------- None Robot Schematics ------------------ None Fabricated ------------ Nothing Repaired ---------- Nothing Studied --------- None Alien Tech Used ----------------- None Achievements -------------- Deconstruction Frankenstein Challenges ------------ None Game ------ Seed HoverMetamassChargecaster Manual? 0 Play Time 00:57:21 Cumulative 119.8 hours Start 2025.11.03 @ 23:20:59 End 2025.11.04 @ 17:23:20 Sessions 3 Manual Loads 0 Difficulty Rogue Special Mode None Game No. 311 Rogue 309 Adventurer 2 Explorer 0 Win Type - Total 1 Types 1/0/0/0/0/0/0/0/0/0 Lore% 78 Gallery% 61 Achievement% 38 Wizard Run 0 Options --------- Layout 2 ASCII 0 Keyboard 0 Movement Numpad Keybinds 0 Fullscreen 2 Font 24/Smallcaps Map View 50x44 Zoom Use 0% Tactical HUD 1 Map Filters NONE Filters NONE Steam 1 RUN: d19c60c5-6932-4af6-8ca3-a6c8d7bdff97